bitfinex/quotes_BTCUSD_20250314
["timestamp","ask_amount","ask_price","bid_price","bid_amount"]
[1741931223002,0.01906076,82242.0,82241.0,0.20196565]
[1741931223362,0.01906076,82242.0,82241.0,0.20818144]
[1741931223753,0.01906076,82242.0,82241.0,0.20696565]
[1741931223958,0.01906076,82242.0,82241.0,0.21196565]
[1741931224417,0.01906076,82242.0,82241.0,0.20196565]
[1741931224619,0.01906076,82242.0,82241.0,0.20596565]
[1741931224775,0.01906076,82242.0,82241.0,0.20996565]
[1741931225394,0.01906076,82242.0,82241.0,0.1954248]
[1741931226754,0.01906076,82242.0,82241.0,0.21118146]
[1741931227727,0.01906076,82242.0,82241.0,0.20996565]
[1741931229984,0.01906076,82242.0,82241.0,0.1954248]
[1741931233494,0.01906076,82242.0,82241.0,0.15946389]
[1741931234811,0.01906076,82242.0,82241.0,0.29454389]
[1741931235684,0.01906076,82242.0,82241.0,0.30670289]
[1741931239631,0.01906076,82242.0,82241.0,0.15946389]
[1741931239838,0.03121976,82242.0,82241.0,0.03756389]
[1741931240040,0.03121976,82242.0,82241.0,0.17276389]
[1741931241042,0.03121976,82242.0,82241.0,0.16876389]
[1741931241245,0.03121976,82242.0,82241.0,0.16476389]
[1741931242158,0.03121976,82242.0,82241.0,0.16976389]
[1741931243557,0.03121976,82242.0,82241.0,0.03456389]
[1741931244444,0.01906076,82242.0,82241.0,0.03456389]
[1741931244647,0.01906076,82242.0,82241.0,0.11236389]
[1741931245282,0.03121976,82242.0,82241.0,0.11236389]
[1741931245774,0.03121976,82242.0,82241.0,0.0053384]
[1741931247287,0.03121976,82242.0,82241.0,0.0003384]
[1741931247470,0.03121976,82242.0,82241.0,0.0023384]
[1741931247671,0.03121976,82242.0,82241.0,0.0043384]
[1741931249851,0.04021644,82242.0,82241.0,0.0043384]
[1741931251866,0.03121976,82242.0,82241.0,0.0043384]
[1741931252466,0.03121976,82242.0,82241.0,0.0808384]
[1741931255250,0.03121976,82242.0,82241.0,0.11004877]
[1741931256237,0.01906076,82242.0,82241.0,0.11004877]
[1741931256449,0.01906076,82242.0,82241.0,0.12220777]
[1741931256810,0.01906076,82242.0,82241.0,0.11004877]
[1741931259929,0.243177,82245.0,82241.0,0.11004877]
[1741931260112,0.01906164,82242.0,82241.0,0.11004877]
[1741931260990,0.01906164,82242.0,82241.0,0.10804877]
[1741931261403,0.01906164,82242.0,82241.0,0.12120777]
[1741931262952,0.01906164,82242.0,82241.0,0.12020777]
[1741931263373,0.01906164,82242.0,82241.0,0.12220777]
[1741931264153,0.01906164,82242.0,82241.0,0.14639605]
[1741931275929,0.01906164,82242.0,82241.0,0.03354877]
[1741931276131,0.27440464,82242.0,82241.0,0.16834877]
[1741931276947,0.27440464,82242.0,82241.0,0.03354877]
[1741931280178,0.27440464,82242.0,82241.0,0.0043384]
[1741931284318,0.01906164,82242.0,82241.0,0.0164974]
[1741931284736,1.16603195,82249.0,82245.0,0.243175]
[1741931285037,1.16603195,82249.0,82242.0,0.243184]
[1741931285164,1.185093,82249.0,82242.0,0.255343]
[1741931285364,1.185093,82249.0,82243.0,0.04138581]
[1741931285557,1.428258,82249.0,82245.0,0.243175]
[1741931285767,1.185093,82249.0,82245.0,0.255333]
[1741931286030,1.185093,82249.0,82246.0,0.012158]
[1741931286166,1.185093,82249.0,82248.0,0.243167]
[1741931286809,1.185093,82249.0,82248.0,0.02922681]
[1741931287246,1.185093,82249.0,82246.0,0.255329]
[1741931287444,1.185093,82249.0,82248.0,0.02922681]
[1741931287674,1.185093,82249.0,82246.0,0.255329]
[1741931287877,1.185093,82249.0,82248.0,0.27239381]
[1741931288107,1.185093,82249.0,82247.0,0.255326]
[1741931288320,1.185093,82249.0,82248.0,0.02922681]
[1741931288546,1.185093,82249.0,82248.0,0.27239381]
[1741931288716,1.185093,82249.0,82248.0,0.28455181]
[1741931289443,1.185093,82249.0,82248.0,0.02922681]
[1741931289613,1.185093,82249.0,82245.0,0.243175]
[1741931289818,1.185093,82249.0,82248.0,0.02922818]
[1741931290019,1.185093,82249.0,82248.0,0.012158]
[1741931290219,1.185093,82249.0,82248.0,0.04138618]
[1741931290815,1.1852621,82249.0,82248.0,0.02922818]
[1741931291238,1.1852621,82249.0,82248.0,0.13488]
[1741931291395,1.1852621,82249.0,82248.0,0.16410818]
[1741931296505,1.1852621,82249.0,82248.0,0.17626618]
[1741931297444,1.1852621,82249.0,82248.0,0.25446618]
[1741931301620,1.1974201,82249.0,82248.0,0.16410818]
[1741931302198,1.1852621,82249.0,82248.0,0.13488]
[1741931302335,1.1852621,82249.0,82248.0,0.16410643]
[1741931302737,1.1852621,82249.0,82248.0,0.17626443]
[1741931303622,1.1852621,82249.0,82248.0,0.16410643]
[1741931303833,1.1852621,82249.0,82248.0,0.16444463]
[1741931305199,0.94964481,82249.0,82248.0,0.16444463]
[1741931307713,0.94964481,82249.0,82248.0,0.17660263]
[1741931308139,0.94964481,82249.0,82248.0,0.25700263]
[1741931309521,0.94964481,82249.0,82248.0,0.30550263]
[1741931311833,0.94964481,82249.0,82248.0,0.30950263]
[1741931312055,0.94964481,82249.0,82248.0,0.30134463]
[1741931312248,0.96180281,82249.0,82248.0,0.17244463]
[1741931312979,0.96180281,82249.0,82248.0,0.16844463]
[1741931313333,0.96180281,82249.0,82248.0,0.17144463]
[1741931313539,0.96180281,82249.0,82248.0,0.16744463]
[1741931313989,0.96180281,82249.0,82248.0,0.17044463]
[1741931314292,0.94964481,82249.0,82248.0,0.17044463]
[1741931314655,0.96180281,82249.0,82248.0,0.17044463]
[1741931314850,0.94964481,82249.0,82248.0,0.17044463]
[1741931315251,0.96180281,82249.0,82248.0,0.17044463]
[1741931315477,0.96180281,82249.0,82248.0,0.16744463]
[1741931315683,0.96180281,82249.0,82248.0,0.1382182]
[1741931315880,0.96180281,82249.0,82248.0,0.1412182]
[1741931316612,0.96180281,82249.0,82248.0,0.1382182]
[1741931316810,0.96180281,82249.0,82248.0,0.1402182]
[1741931316989,0.96180281,82249.0,82248.0,0.0053382]
[1741931317162,0.96180281,82249.0,82248.0,0.1405382]
[1741931317360,0.96180281,82249.0,82248.0,0.1375382]
[1741931317617,0.96180281,82249.0,82248.0,0.1395382]
[1741931318184,0.96180281,82249.0,82248.0,0.16876046]
[1741931320561,0.94964481,82249.0,82248.0,0.42408546]
[1741931320715,0.94964481,82249.0,82248.0,0.4725632]
[1741931320922,0.94964481,82249.0,82248.0,0.50178546]
[1741931322789,0.94964481,82249.0,82248.0,0.24646046]
[1741931325001,0.94964481,82249.0,82248.0,0.25861846]
[1741931326082,0.94964481,82249.0,82248.0,0.30781846]
[1741931334511,0.94964481,82249.0,82248.0,0.17261846]
[1741931334754,0.94964481,82249.0,82248.0,0.29570046]
[1741931334954,0.94964481,82249.0,82248.0,0.16880046]
[1741931335333,0.94964481,82249.0,82248.0,0.16876046]
[1741931338298,0.96180281,82249.0,82248.0,0.03356046]
[1741931338467,1.26180281,82249.0,82248.0,0.16884046]
[1741931338670,1.26180281,82249.0,82248.0,0.1396182]
[1741931339073,1.26180281,82249.0,82248.0,0.1376182]
[1741931339478,1.26180281,82249.0,82248.0,0.1366182]
[1741931339900,1.26180281,82249.0,82248.0,0.1376182]
[1741931342811,1.26180281,82249.0,82248.0,0.0023382]
[1741931345306,1.26180281,82249.0,82248.0,0.0013382]
[1741931345506,1.26180281,82249.0,82248.0,0.0003382]
[1741931353884,1.47360265,82249.0,82248.0,0.0003382]
[1741931354300,1.47360265,82249.0,82248.0,3.82e-05]
[1741931355035,1.47360265,82249.0,82213.0,0.0003378]
[1741931355036,0.012163,82214.0,82213.0,0.0003378]
[1741931355236,0.55543,82214.0,82213.0,0.0007479]
[1741931355442,0.55543,82214.0,82213.0,0.0001479]
[1741931356047,0.57050566,82214.0,82213.0,0.0001479]
[1741931356390,0.57050566,82214.0,82213.0,0.0902479]
[1741931356391,0.3,82214.0,82213.0,0.0902479]
[1741931356549,0.01451228,82220.0,82214.0,0.30313]
[1741931356745,0.012162,82218.0,82214.0,0.0477]
[1741931356957,0.012162,82218.0,82215.0,0.02924607]
[1741931356958,0.24326,82217.0,82215.0,0.02924607]
[1741931357158,0.255422,82217.0,82215.0,0.16476607]
[1741931357949,0.255422,82217.0,82215.0,0.14570607]
[1741931358121,0.255422,82217.0,82215.0,0.16291463]
[1741931358885,0.243257,82218.0,82215.0,0.16291463]
[1741931359103,0.01906781,82219.0,82217.0,0.243256]
[1741931359309,0.01906781,82219.0,82218.0,0.012162]
[1741931359764,0.01906781,82219.0,82218.0,0.03955663]
[1741931361642,0.01906781,82219.0,82218.0,0.04255663]
[1741931362465,0.01906781,82219.0,82218.0,0.12145663]
[1741931364027,0.01906781,82219.0,82218.0,0.12345663]
[1741931364891,0.01940621,82219.0,82218.0,0.12345663]
[1741931370083,0.01940621,82219.0,82218.0,0.12467284]
[1741931370259,0.01940621,82219.0,82218.0,0.12345663]
[1741931372627,0.01940621,82219.0,82218.0,0.16895663]
[1741931377358,0.01940621,82219.0,82218.0,0.30415663]
[1741931381534,0.07892346,82227.0,82222.0,0.012162]
[1741931381670,0.243233,82226.0,82222.0,0.012162]
[1741931381878,0.243233,82226.0,82223.0,0.02741101]
[1741931382462,0.243233,82226.0,82224.0,0.02741101]
[1741931382854,0.243233,82226.0,82221.0,0.243245]
[1741931383017,0.243233,82226.0,82225.0,0.02741093]
[1741931383332,0.243233,82226.0,82221.0,0.243245]
[1741931383534,0.243233,82226.0,82225.0,0.02741093]
[1741931383692,0.243233,82226.0,82221.0,0.243245]
[1741931383894,0.255388,82228.0,82225.0,0.02741093]
[1741931384089,0.255388,82228.0,82221.0,0.243245]
[1741931384315,0.243229,82227.0,82226.0,0.02741093]
[1741931384510,0.255388,82228.0,82222.0,0.243241]
[1741931384717,0.243227,82228.0,82226.0,0.02741093]
[1741931384922,0.243227,82228.0,82222.0,0.255403]
[1741931385122,0.243227,82228.0,82227.0,0.02741093]
[1741931385333,0.243227,82228.0,82222.0,0.255403]
[1741931385571,0.243227,82228.0,82227.0,0.02741554]
[1741931385745,0.243227,82228.0,82223.0,0.243239]
[1741931385955,0.243227,82228.0,82227.0,0.02741554]
[1741931386265,0.012161,82229.0,82227.0,0.02741554]
[1741931386445,0.012161,82229.0,82228.0,0.135]
[1741931386592,0.012161,82229.0,82228.0,0.15968771]
[1741931389056,0.0124994,82229.0,82228.0,0.15968771]
[1741931390102,0.0124994,82229.0,82228.0,0.135]
[1741931394353,0.0124994,82229.0,82228.0,0.15928771]
[1741931394726,0.0124994,82229.0,82228.0,0.135]
[1741931400968,0.0003384,82229.0,82228.0,0.2119]
[1741931401174,0.0003384,82229.0,82228.0,0.23619106]
[1741931401776,0.0003384,82229.0,82228.0,0.24835206]
[1741931401970,0.0003384,82229.0,82228.0,0.29655206]
[1741931402270,0.0003384,82229.0,82228.0,0.29755206]
[1741931402475,0.0003384,82229.0,82228.0,0.16255206]
[1741931402694,0.2557224,82229.0,82228.0,0.28519106]
[1741931402977,0.2557224,82229.0,82228.0,0.28419106]
[1741931403363,0.2557224,82229.0,82228.0,0.28819106]
[1741931403657,0.2557224,82229.0,82228.0,0.28719106]
[1741931403845,0.2557224,82229.0,82228.0,0.28519106]
[1741931404162,0.2557224,82229.0,82228.0,0.28719106]
[1741931404697,0.0003384,82229.0,82228.0,0.28719106]
[1741931405067,0.0124994,82229.0,82228.0,0.28719106]
[1741931405286,0.0124994,82229.0,82228.0,0.16309106]
[1741931406856,0.26109808,82231.0,82228.0,0.16309106]
[1741931407026,0.243221,82230.0,82228.0,0.16309106]
[1741931407356,0.01464218,82230.0,82228.0,0.1388]
[1741931407570,0.01787908,82231.0,82228.0,0.1388]
[1741931407741,0.012161,82230.0,82229.0,0.02186659]
[1741931407937,0.02660797,82230.0,82229.0,0.02186659]
[1741931408140,0.01444697,82230.0,82229.0,0.02186659]
[1741931408366,0.01787908,82231.0,82229.0,0.02186659]
[1741931408629,0.26109708,82231.0,82229.0,0.02186659]
[1741931409180,0.27325708,82231.0,82229.0,0.02186659]
[1741931409423,0.03202217,82231.0,82229.0,0.02186659]
[1741931409726,0.03202217,82231.0,82229.0,0.02386659]
[1741931409901,0.03202217,82231.0,82230.0,0.091561]
[1741931410306,0.03202217,82231.0,82230.0,0.0794]
[1741931410638,0.03202217,82231.0,82230.0,0.10126659]
[1741931410843,0.04418217,82231.0,82230.0,0.02186659]
[1741931411090,0.28739917,82231.0,82230.0,0.02186659]
[1741931411856,0.28739917,82231.0,82230.0,0.02286659]
[1741931412898,0.28739917,82231.0,82230.0,0.02386659]
[1741931414314,0.03202217,82231.0,82230.0,0.02386659]
[1741931415049,0.03236037,82231.0,82230.0,0.02386659]
[1741931418552,0.04452037,82231.0,82230.0,0.02386659]
[1741931420178,0.25198394,82233.0,82230.0,0.02386659]
[1741931420527,0.01216,82231.0,82230.0,0.02386659]
[1741931420937,0.01216,82231.0,82230.0,0.002]
[1741931421140,0.01216,82231.0,82230.0,0.001]
[1741931422090,0.012161,82229.0,82228.0,0.1348]
[1741931422324,0.255387,82228.0,82227.0,0.0001691]
[1741931422521,0.255387,82228.0,82227.0,0.1349691]
[1741931423275,0.255387,82228.0,82227.0,0.0001691]
[1741931423490,0.555387,82228.0,82227.0,0.0021691]
[1741931423693,0.73144932,82228.0,82227.0,0.0021691]
[1741931424118,0.621287,82228.0,82227.0,0.0041691]
[1741931424369,0.666487,82228.0,82227.0,0.0041691]
[1741931425568,0.666487,82228.0,82227.0,0.0001691]
[1741931426430,0.668487,82228.0,82227.0,0.0001691]
[1741931426634,0.670487,82228.0,82227.0,0.0001691]
[1741931426896,0.012163,82216.0,82213.0,0.0003171]
[1741931427071,0.555424,82216.0,82213.0,0.0003171]
[1741931427282,0.555424,82216.0,82215.0,0.02204374]
[1741931427733,0.57449324,82216.0,82215.0,0.02204374]
[1741931428129,0.57449324,82216.0,82215.0,0.0001692]
[1741931428787,0.57449324,82216.0,82215.0,0.0011692]
[1741931429021,0.57449324,82216.0,82215.0,0.0021692]
[1741931429827,0.57449324,82216.0,82215.0,0.0011692]
[1741931430028,0.57449324,82216.0,82215.0,0.0001692]
[1741931430189,0.57449324,82216.0,82215.0,0.0021692]
[1741931430391,0.69445413,82216.0,82215.0,0.0021692]
[1741931430600,0.80575413,82216.0,82215.0,0.0021692]
[1741931431586,0.68579324,82216.0,82215.0,6.92e-05]
[1741931432141,0.55543,82214.0,82213.0,0.0003171]
[1741931433302,0.55743,82214.0,82213.0,0.0003171]
[1741931433723,0.55943,82214.0,82213.0,0.0003171]
[1741931436021,0.55943,82214.0,82213.0,0.0792171]
[1741931436558,0.55743,82214.0,82213.0,0.0792171]
[1741931436792,0.005,82214.0,82213.0,0.1275171]
[1741931437137,0.25843,82214.0,82213.0,0.153357]
[1741931437527,0.26043,82214.0,82213.0,0.153357]
[1741931438337,0.25743,82214.0,82213.0,0.153357]
[1741931438796,0.01906924,82216.0,82213.0,0.408788]
[1741931438953,0.01906924,82216.0,82215.0,0.012163]
[1741931439165,0.01906924,82216.0,82215.0,0.089863]
[1741931439554,0.01940764,82216.0,82215.0,0.1035399]
[1741931440121,0.02040764,82216.0,82215.0,0.1035399]
[1741931442106,0.02140764,82216.0,82215.0,0.1035399]
[1741931442756,0.03357064,82216.0,82215.0,0.1035399]
[1741931443364,0.03357064,82216.0,82215.0,0.0777]
[1741931444862,0.03357064,82216.0,82215.0,0.10350164]
[1741931446431,0.03357064,82216.0,82215.0,0.0777]
[1741931450372,0.03357064,82216.0,82215.0,0.10347285]
[1741931452025,0.03357064,82216.0,82215.0,0.10364205]
[1741931453498,0.03357064,82216.0,82215.0,0.23848205]
[1741931455291,0.03357064,82216.0,82215.0,0.16078205]
[1741931455493,0.33357064,82216.0,82215.0,0.02594205]
[1741931455883,0.33357064,82216.0,82215.0,0.0001692]
[1741931462046,0.33257064,82216.0,82215.0,0.0001692]
[1741931462450,0.33457064,82216.0,82215.0,0.0001692]
[1741931462634,0.33357064,82216.0,82215.0,0.0001692]
[1741931463201,0.33557064,82216.0,82215.0,0.0001692]
[1741931463877,0.33357064,82216.0,82215.0,0.0001692]
[1741931464079,0.33557064,82216.0,82215.0,0.0001692]
[1741931468164,0.03557064,82216.0,82215.0,0.0001692]
[1741931468368,0.02340764,82216.0,82215.0,0.0820692]
[1741931468576,0.03557064,82216.0,82215.0,0.0820692]
[1741931468785,0.03557064,82216.0,82215.0,0.10788617]
[1741931469353,0.03357064,82216.0,82215.0,0.10788617]
[1741931469955,0.03157064,82216.0,82215.0,0.10788617]
[1741931470381,0.03257064,82216.0,82215.0,0.10788617]
[1741931474930,0.03257064,82216.0,82215.0,0.0820692]
[1741931475138,0.13257064,82216.0,82215.0,0.10788617]
[1741931476617,0.13257064,82216.0,82215.0,0.0820692]
[1741931481642,0.13257064,82216.0,82215.0,0.0001692]
[1741931482211,0.13257064,82216.0,82215.0,0.02598617]
[1741931495658,0.13157064,82216.0,82215.0,0.02598617]
[1741931496017,0.13357064,82216.0,82215.0,0.02598617]
[1741931496594,0.13157064,82216.0,82215.0,0.02598617]
[1741931496774,0.13257064,82216.0,82215.0,0.02598617]
[1741931497873,0.12040764,82216.0,82215.0,0.02598617]
[1741931498768,0.12040764,82216.0,82215.0,0.10308617]
[1741931505883,0.13257064,82216.0,82215.0,0.10308617]
[1741931512514,0.12040764,82216.0,82215.0,0.10308617]
[1741931515446,0.12040764,82216.0,82215.0,0.23792617]
[1741931515813,0.13257064,82216.0,82215.0,0.23792617]
[1741931520587,0.54326,82217.0,82215.0,0.23792617]
[1741931520998,0.01906832,82216.0,82215.0,0.23792617]
[1741931523875,0.01906832,82216.0,82215.0,0.28732617]
[1741931524076,0.02670528,82233.0,82225.0,0.012161]
[1741931524277,0.3,82230.0,82227.0,0.0459]
[1741931524550,0.31906511,82230.0,82227.0,0.0459]
[1741931524851,0.31906511,82230.0,82228.0,0.02569554]
[1741931525082,0.31906511,82230.0,82229.0,0.13484]
[1741931525403,0.33122611,82230.0,82229.0,0.16053554]
[1741931525772,0.02106511,82230.0,82229.0,0.16053554]
[1741931526601,0.02106511,82230.0,82229.0,0.17269654]
[1741931527146,0.01906511,82230.0,82229.0,0.17269654]
[1741931527354,0.02306511,82230.0,82229.0,0.17269654]
[1741931527637,0.02106511,82230.0,82229.0,0.25319654]
[1741931528057,0.02006511,82230.0,82229.0,0.30259654]
[1741931529334,0.01906511,82230.0,82229.0,0.30259654]
[1741931529986,0.01906511,82230.0,82229.0,0.32669838]
[1741931530281,0.01906511,82230.0,82229.0,0.32869838]
[1741931530641,0.01940351,82230.0,82229.0,0.33069838]
[1741931531477,0.25533,82247.0,82242.0,0.0756]
[1741931531710,0.25533,82247.0,82243.0,0.1348]
[1741931531913,0.93058376,82249.0,82248.0,0.012158]
[1741931532090,0.93058376,82249.0,82248.0,0.087358]
[1741931532455,0.93058376,82249.0,82248.0,0.11297317]
[1741931532821,0.93058376,82249.0,82248.0,0.15647317]
[1741931532822,0.9309937,82249.0,82248.0,0.15647317]
[1741931533431,0.9319937,82249.0,82248.0,0.15647317]
[1741931533635,0.9309937,82249.0,82248.0,0.15647317]
[1741931534161,0.9309937,82249.0,82248.0,0.15347317]
[1741931534357,0.9309937,82249.0,82248.0,0.17752138]
[1741931535518,0.9309937,82249.0,82248.0,0.17952138]
[1741931535697,0.9309937,82249.0,82248.0,0.18052138]
[1741931536099,0.9309937,82249.0,82248.0,0.17952138]
[1741931536324,0.9309937,82249.0,82248.0,0.18152138]
[1741931540861,0.9309937,82249.0,82248.0,0.17436338]
[1741931542000,0.9309937,82249.0,82248.0,0.02961517]
[1741931542157,0.9431517,82249.0,82248.0,0.16437517]
[1741931542567,0.9309937,82249.0,82248.0,0.40754217]
[1741931542958,0.69699658,82249.0,82248.0,0.40754217]
[1741931543159,0.69699658,82249.0,82248.0,0.49900017]
[1741931543539,0.69699658,82249.0,82248.0,0.54710017]
[1741931545422,0.69699658,82249.0,82248.0,0.29177517]
[1741931545743,0.69699658,82249.0,82248.0,0.30393317]
[1741931546953,0.69699658,82249.0,82248.0,0.29177517]
[1741931547162,0.69699658,82249.0,82248.0,0.30393317]
[1741931550163,0.69699658,82249.0,82248.0,0.29177517]
[1741931550814,0.69699658,82249.0,82248.0,0.30393317]
[1741931553140,0.69699658,82249.0,82248.0,0.30427137]
[1741931553285,0.69699658,82249.0,82248.0,0.29211337]
[1741931553857,0.69699658,82249.0,82248.0,0.16471337]
[1741931554832,0.69699658,82249.0,82248.0,0.02995337]
[1741931555044,0.69699658,82249.0,82248.0,0.16471337]
[1741931558376,0.69699658,82249.0,82248.0,0.02995337]
[1741931558711,0.70915458,82249.0,82248.0,0.1390982]
[1741931559847,0.69699658,82249.0,82248.0,0.1390982]
[1741931560015,0.70915458,82249.0,82248.0,0.1350982]
[1741931560196,0.70915458,82249.0,82248.0,0.16160266]
[1741931560385,0.70915458,82249.0,82248.0,0.16260266]
[1741931560935,0.70915458,82249.0,82248.0,0.16160266]
[1741931561232,0.70915458,82249.0,82248.0,0.16260266]
[1741931562598,0.69699658,82249.0,82248.0,0.16260266]
[1741931563413,0.70601906,82249.0,82248.0,0.16260266]
[1741931563571,0.70601906,82249.0,82248.0,0.24250266]
[1741931563798,0.69699658,82249.0,82248.0,0.30036066]
[1741931564733,0.69699658,82249.0,82248.0,0.29936066]
[1741931565039,0.69699658,82249.0,82248.0,0.30036066]
[1741931566377,0.69699658,82249.0,82248.0,0.29936066]
[1741931566659,0.69699658,82249.0,82248.0,0.30036066]
[1741931567210,0.69699658,82249.0,82248.0,0.29836066]
[1741931567440,0.69699658,82249.0,82248.0,0.30236066]
[1741931567829,0.69699658,82249.0,82248.0,0.29836066]
[1741931568026,0.69699658,82249.0,82248.0,0.30036066]
[1741931568227,0.69699658,82249.0,82248.0,0.30336066]
[1741931580768,0.69699658,82249.0,82248.0,0.31790151]
[1741931580928,0.69699658,82249.0,82248.0,0.72570151]
[1741931582025,0.69699658,82249.0,82248.0,0.74014152]
[1741931582347,0.69699658,82249.0,82248.0,0.74614152]
[1741931582550,0.69699658,82249.0,82248.0,0.74314152]
[1741931582751,0.69699658,82249.0,82248.0,0.72670151]
[1741931582964,0.69699658,82249.0,82248.0,0.72970151]
[1741931583416,0.69699658,82249.0,82248.0,0.72670151]
[1741931583782,0.69699658,82249.0,82248.0,0.73270151]
[1741931597931,0.69699658,82249.0,82248.0,1.50474151]
[1741931601263,0.71980981,82249.0,82248.0,1.50474151]
[1741931602016,0.71980981,82249.0,82248.0,1.22984066]
[1741931602216,0.71980981,82249.0,82248.0,1.60772766]
[1741931603285,0.71980981,82249.0,82248.0,1.60172766]
[1741931603491,0.71980981,82249.0,82248.0,1.60672766]
[1741931603689,0.71980981,82249.0,82248.0,1.60072766]
[1741931604192,0.71980981,82249.0,82248.0,1.60472766]
[1741931604388,0.71980981,82249.0,82248.0,1.34940266]
[1741931604619,0.71980981,82249.0,82248.0,1.36156066]
[1741931606047,0.73121626,82249.0,82248.0,1.36156066]
[1741931606797,0.73121626,82249.0,82248.0,1.44206066]
[1741931607363,0.73121626,82249.0,82248.0,1.45660151]
[1741931607941,0.73121626,82249.0,82248.0,1.50200151]
[1741931611353,0.73121626,82249.0,82248.0,1.36728151]
[1741931611559,0.73121626,82249.0,82248.0,1.50200151]
[1741931617937,0.5399399,82249.0,82248.0,1.50200151]
[1741931618676,0.52853345,82249.0,82248.0,1.50200151]
[1741931618852,0.51397136,82249.0,82248.0,1.50200151]
[1741931619055,0.52537697,82249.0,82248.0,1.50200151]
[1741931622849,0.52537697,82249.0,82248.0,1.6217025]
[1741931623350,0.52537697,82249.0,82248.0,3.1217025]
[1741931623857,0.52537697,82249.0,82248.0,3.1177025]
[1741931624067,0.52537697,82249.0,82248.0,3.1237025]
[1741931624448,0.52537697,82249.0,82248.0,3.1187025]
[1741931624999,0.52537697,82249.0,82248.0,3.1247025]
[1741931625427,0.50256374,82249.0,82248.0,3.8086025]
[1741931628274,0.50256374,82249.0,82248.0,2.3086025]
[1741931629726,0.45556374,82249.0,82248.0,2.3086025]
[1741931630325,0.44415813,82249.0,82248.0,2.3086025]
[1741931631122,0.17062167,82249.0,82248.0,2.3086025]
[1741931632172,0.17062167,82249.0,82248.0,3.8086025]
[1741931633928,0.17062167,82249.0,82248.0,3.8026025]
[1741931634670,0.17062167,82249.0,82248.0,3.8086025]
[1741931638247,0.005,82311.0,82274.0,0.243089]
[1741931638440,0.005,82311.0,82275.0,0.13472]
[1741931638441,0.00012291,82276.0,82275.0,0.13472]
[1741931638668,0.00012291,82276.0,82275.0,0.16013982]
[1741931638876,0.01917934,82276.0,82275.0,0.16013982]
[1741931639641,0.03059032,82276.0,82275.0,0.16013982]
[1741931640272,0.05852242,82276.0,82275.0,0.16013982]
[1741931640705,0.03059032,82276.0,82275.0,0.16013982]
[1741931640878,0.03059032,82276.0,82275.0,0.17229382]
[1741931642893,0.01153389,82276.0,82275.0,0.17229382]
[1741931644538,0.01153389,82276.0,82275.0,0.18683467]
[1741931644735,0.01153389,82276.0,82275.0,0.18804998]
[1741931646136,0.01153389,82276.0,82275.0,0.19104998]
[1741931646333,0.01153389,82276.0,82275.0,0.23604998]
[1741931646533,0.01153389,82276.0,82275.0,0.23483467]
[1741931648234,0.01153389,82276.0,82275.0,0.23217287]
[1741931648585,0.01170299,82276.0,82275.0,0.23717287]
[1741931648919,0.01170299,82276.0,82275.0,0.64497287]
[1741931649121,0.01170299,82276.0,82275.0,0.64897287]
[1741931650132,0.01170299,82276.0,82275.0,0.76867386]
[1741931650523,0.00029201,82276.0,82275.0,0.76867386]
[1741931653665,0.00029201,82276.0,82275.0,0.84547386]
[1741931654615,0.00029201,82276.0,82275.0,0.84047386]
[1741931654855,0.00029201,82276.0,82275.0,0.84547386]
[1741931655146,0.00029201,82276.0,82275.0,1.01075386]
[1741931655298,0.00029201,82276.0,82275.0,1.14043386]
[1741931655494,0.00029201,82276.0,82275.0,1.14643386]
[1741931655704,0.00029201,82276.0,82275.0,2.64643386]
[1741931656134,0.000169,82299.0,82297.0,0.243019]
[1741931656334,0.000169,82299.0,82298.0,0.13468]
[1741931656561,0.000169,82299.0,82298.0,0.16002979]
[1741931656913,0.02755484,82299.0,82298.0,0.17217979]
[1741931657110,0.01154136,82299.0,82298.0,0.17217979]
[1741931657975,0.01154136,82299.0,82298.0,0.17317979]
[1741931658313,0.03428283,82299.0,82298.0,0.18872064]
[1741931658553,0.03428283,82299.0,82298.0,0.67212064]
[1741931658873,0.03428283,82299.0,82298.0,0.67112064]
[1741931659271,0.03428283,82299.0,82298.0,0.67012064]
[1741931659501,0.01154136,82299.0,82298.0,0.67012064]
[1741931660238,0.01154136,82299.0,82298.0,0.67112064]
[1741931660239,0.000169,82299.0,82298.0,0.67112064]
[1741931660445,0.000169,82299.0,82298.0,0.67212064]
[1741931660653,0.000169,82299.0,82298.0,0.67012064]
[1741931660847,0.000169,82299.0,82298.0,0.78982163]
[1741931661006,0.000169,82299.0,82298.0,0.80182163]
[1741931661555,0.000169,82299.0,82298.0,0.83492163]
[1741931661755,0.000169,82299.0,82298.0,0.84092163]
[1741931662931,0.000169,82299.0,82298.0,1.14692163]
[1741931663314,0.000169,82299.0,82298.0,2.64692163]
[1741931663467,0.000169,82299.0,82298.0,3.33082163]
[1741931663874,0.000169,82299.0,82298.0,3.32482163]
[1741931664485,0.000169,82299.0,82298.0,3.38582163]
[1741931664686,0.000169,82299.0,82298.0,3.33582163]
[1741931664889,0.000169,82299.0,82298.0,3.33082163]
[1741931665442,0.000169,82299.0,82298.0,3.38082163]
[1741931665578,0.000169,82299.0,82298.0,1.88082163]
[1741931665986,0.000169,82299.0,82298.0,1.87482163]
[1741931667047,0.000169,82299.0,82298.0,1.88082163]
[1741931667371,0.000169,82299.0,82298.0,1.87482163]
[1741931667587,0.000169,82299.0,82298.0,1.88082163]
[1741931668440,0.000169,82299.0,82298.0,1.83082163]
[1741931668764,0.000169,82299.0,82298.0,1.88082163]
[1741931669082,0.000169,82299.0,82298.0,1.83082163]
[1741931669225,0.000169,82299.0,82298.0,1.88082163]
[1741931670531,0.000169,82299.0,82298.0,1.83082163]
[1741931673478,0.000169,82299.0,82298.0,1.69614163]
[1741931673678,0.000169,82299.0,82298.0,1.83078163]
[1741931673884,0.000169,82299.0,82298.0,1.88078163]
[1741931674086,0.000169,82299.0,82298.0,1.83078163]
[1741931674318,0.000169,82299.0,82298.0,1.88078163]
[1741931676013,0.000169,82299.0,82298.0,3.38078163]
[1741931676567,0.000169,82299.0,82298.0,4.15226163]
[1741931676767,0.000169,82299.0,82298.0,4.10226163]
[1741931678112,0.000169,82299.0,82298.0,4.15226163]
[1741931678687,0.000169,82299.0,82298.0,4.10226163]
[1741931679180,0.000169,82299.0,82298.0,3.96762163]
[1741931679357,0.000169,82299.0,82298.0,4.10226163]
[1741931680235,0.000169,82299.0,82298.0,4.15226163]
[1741931681853,0.000169,82299.0,82298.0,2.65226163]
[1741931682819,0.000169,82299.0,82298.0,2.60226163]
[1741931683050,0.000169,82299.0,82298.0,2.65226163]
[1741931683288,0.000169,82299.0,82298.0,2.60226163]
[1741931683679,0.000169,82299.0,82298.0,2.60222163]
[1741931683881,0.000169,82299.0,82298.0,2.42252163]
[1741931684081,0.000169,82299.0,82298.0,2.21267979]
[1741931684366,0.000169,82299.0,82298.0,2.34727979]
[1741931684567,0.000169,82299.0,82298.0,2.36182064]